fUSD/lending_fUSD_20260408
["ID","MTS","AMOUNT","RATE_DAILY","PERIOD"]
[420041509,1775629857105,-612.0,0.00026,2]
[420041510,1775629857114,-486.879159,0.00026,2]
[420041511,1775629857122,-486.879159,0.00026,2]
[420041512,1775629857132,-486.879159,0.00026,2]
[420041513,1775629857142,-151.0,0.00026,2]
[420041514,1775629857152,-151.0,0.00026,2]
[420041515,1775629857162,-1000.0,0.00026,2]
[420041516,1775629857172,-151.0,0.00026,2]
[420041517,1775629857182,-1997.607165,0.00026,2]
[420041518,1775629857191,-1997.607165,0.00026,2]
[420041519,1775629857201,-1997.607165,0.00026,2]
[420041520,1775629857211,-1997.607165,0.00026,2]
[420041521,1775629857222,-1151.0,0.00026,2]
[420041522,1775629857233,-151.0,0.00026,2]
[420041523,1775629857243,-151.0,0.00026,2]
[420041524,1775629857252,-157.639504,0.00026,2]
[420041525,1775629857261,-627.0,0.00026,2]
[420041526,1775629857271,-151.0,0.00026,2]
[420041527,1775629857281,-157.639504,0.00026,2]
[420041528,1775629857291,-174.887897,0.00026,2]
[420041529,1775629857301,-157.639504,0.00026,2]
[420041530,1775629857311,-174.887897,0.00026,2]
[420041531,1775629857320,-157.639504,0.00026,2]
[420041532,1775629857330,-174.887897,0.00026,2]
[420041533,1775629857340,-174.887897,0.00026,2]
[420041534,1775629857350,-151.0,0.00026,2]
[420041535,1775629857360,-151.0,0.00026,2]
[420041536,1775629857370,-151.0,0.00026,2]
[420041537,1775629857380,-151.0,0.00026,2]
[420041538,1775629857393,-151.0,0.00026,2]
[420041539,1775629857402,-830.0,0.00026,2]
[420041540,1775629857413,-878.0,0.00026,2]
[420041541,1775629857422,-1209.0,0.00026,2]
[420041542,1775629857432,-543.52,0.00026087,30]
[420041543,1775629857442,-162.0,0.00026092,3]
[420041544,1775629857452,-2812.0,0.00026106,3]
[420041545,1775629857462,-2812.0,0.0002612,3]
[420041546,1775629857472,-2000.0,0.00026125,2]
[420041547,1775629857482,-1002.2105,0.00026125,2]
[420041548,1775629857491,-1207.49,0.00026195,7]
[420041549,1775629857502,-507.0,0.00026241,13]
[420041550,1775629857511,-260.0,0.00026383,2]
[420041551,1775629857521,-700.0,0.00026408,2]
[420041552,1775629857531,-1573.0,0.00026446,3]
[420041553,1775629857541,-1000.0,0.00026667,7]
[420041554,1775629857551,-331.44330318,0.00026675,2]
[420041555,1775629857561,-1000.0,0.00026676,120]
[420041556,1775629857571,-1000.0,0.00026676,120]
[420041557,1775629857580,-1000.0,0.00026676,120]
[420041558,1775629857589,-1000.0,0.00026676,120]
[420041559,1775629857600,-1000.0,0.00026676,120]
[420041560,1775629857609,-1000.0,0.00026676,120]
[420041561,1775629857620,-1000.0,0.00026676,120]
[420041562,1775629857629,-1000.0,0.00026676,120]
[420041563,1775629857639,-1000.0,0.00026676,120]
[420041564,1775629857649,-1000.0,0.00026676,120]
[420041565,1775629857658,-1000.0,0.00026676,120]
[420041566,1775629857668,-1000.0,0.00026676,120]
[420041567,1775629857677,-1000.0,0.00026676,120]
[420041568,1775629857686,-1000.0,0.00026676,120]
[420041569,1775629857696,-1000.0,0.00026676,120]
[420041570,1775629857707,-1000.0,0.00026676,120]
[420041571,1775629857717,-1000.0,0.00026676,120]
[420041572,1775629857727,-1000.0,0.00026676,120]
[420041573,1775629857737,-1000.0,0.00026676,120]
[420041574,1775629857748,-1000.0,0.00026676,120]
[420041575,1775629857759,-1000.0,0.00026676,120]
[420041576,1775629857769,-1000.0,0.00026676,120]
[420041577,1775629857779,-1000.0,0.00026676,120]
[420041578,1775629857789,-1000.0,0.00026676,120]
[420041579,1775629857799,-1000.0,0.00026676,120]
[420041580,1775629857808,-1000.0,0.00026676,120]
[420041581,1775629857818,-1000.0,0.00026676,120]
[420041582,1775629857827,-1000.0,0.00026676,120]
[420041583,1775629857837,-1000.0,0.00026676,120]
[420041584,1775629857846,-2202.78,0.00026676,2]
[420041585,1775629857855,-975.4325624,0.00026678,7]
[420041586,1775629857863,-931.295422,0.00026678,2]
[420041587,1775629857872,-516.55211,0.00026678,2]
[420041588,1775629857882,-931.295422,0.00026678,2]
[420041589,1775629857892,-516.55211,0.00026678,2]
[420041590,1775629857902,-151.0,0.00026678,2]
[420041591,1775629857912,-300.187423,0.00026678,2]
[420041592,1775629857923,-931.295422,0.00026678,2]
[420041593,1775629857932,-516.55211,0.00026678,2]
[420041594,1775629857942,-300.187423,0.00026678,2]
[420041595,1775629857952,-151.0,0.00026678,2]
[420041596,1775629857961,-931.295422,0.00026678,2]
[420041597,1775629857971,-516.55211,0.00026678,2]
[420041598,1775629857981,-151.0,0.00026678,2]
[420041599,1775629857990,-300.187423,0.00026678,2]
[420041600,1775629858000,-218.181893,0.00026678,2]
[420041601,1775629858010,-151.0,0.00026678,2]
[420041602,1775629858020,-300.187423,0.00026678,2]
[420041603,1775629858030,-151.0,0.00026678,2]
[420041604,1775629858040,-151.0,0.00026678,2]
[420041605,1775629858050,-153.180645,0.00026678,2]
[420041606,1775629858060,-1436.269995,0.00026678,2]
[420041607,1775629858070,-153.180645,0.00026678,2]
[420041608,1775629858080,-151.0,0.00026678,2]
[420041609,1775629858090,-153.180645,0.00026678,2]
[420041610,1775629858100,-151.0,0.00026678,2]
[420041611,1775629858109,-153.180645,0.00026678,2]
[420041612,1775629858119,-151.0,0.00026678,2]
[420041613,1775629858128,-151.0,0.00026678,2]
[420041614,1775629858138,-1436.269995,0.00026678,2]
[420041615,1775629858148,-1436.269995,0.00026678,2]
[420041616,1775629858158,-1436.269995,0.00026678,2]
[420041617,1775629858167,-151.0,0.00026678,2]
[420041618,1775629858178,-151.0,0.00026678,2]
[420041619,1775629858188,-275.383851,0.00026678,2]
[420041620,1775629858198,-151.0,0.00026678,2]
[420041621,1775629858208,-167.979442,0.00026678,2]
[420041622,1775629858218,-275.383851,0.00026678,2]
[420041623,1775629858228,-247.697727,0.00026678,2]
[420041624,1775629858238,-167.979442,0.00026678,2]
[420041625,1775629858248,-275.383851,0.00026678,2]
[420041626,1775629858258,-151.0,0.00026678,2]
[420041627,1775629858270,-167.979442,0.00026678,2]
[420041628,1775629858280,-275.383851,0.00026678,2]
[420041629,1775629858290,-151.0,0.00026678,2]
[420041630,1775629858300,-167.979442,0.00026678,2]
[420041631,1775629858309,-151.0,0.00026678,2]
[420041632,1775629858319,-1000.0,0.00026678,120]
[420041633,1775629858329,-2200.0,0.00026678,7]
[420041634,1775629858339,-1100.0,0.00026678,7]
[420041635,1775629858348,-312.0,0.00026681,2]
[420041636,1775629858358,-1000.0,0.00026694,120]
[420041637,1775629858368,-1000.0,0.000267,120]
[420041638,1775629858378,-1000.0,0.00026725,120]
[420041639,1775629858387,-1000.0,0.00026728,120]
[420041640,1775629858398,-1000.0,0.0002673,120]
[420041641,1775629858408,-1000.0,0.00026747,120]
[420041642,1775629858417,-1000.0,0.000268,120]
[420041643,1775629858427,-350.0,0.00026805,2]
[420041644,1775629858437,-1000.0,0.00026849,120]
[420041645,1775629858447,-1000.0,0.0002686,120]
[420041646,1775629858459,-500.0,0.00026875,120]
[420041647,1775629858471,-1000.0,0.0002688,120]
[420041648,1775629858482,-215.39830433,0.00026894,2]
[420041649,1775629858492,-686.05,0.00026894,2]
[420041650,1775629858502,-647.7471,0.000269,2]
[420041651,1775629858512,-1000.0,0.00026905,120]
[420041652,1775629858522,-381.74597666,0.00026928,2]
[420041653,1775629858533,-612.0,0.00027,2]
[420041654,1775629858544,-1037.0,0.00027,2]
[420041655,1775629858557,-151.0,0.00027,2]
[420041656,1775629858567,-151.0,0.00027,2]
[420041657,1775629858577,-459.939466,0.00027,2]
[420041658,1775629858589,-459.939466,0.00027,2]
[420041659,1775629858599,-459.939466,0.00027,2]
[420041660,1775629858610,-459.939466,0.00027,2]
[420041661,1775629858620,-4649.0,0.00027,2]
[420041662,1775629858630,-2952.0,0.00027,2]
[420041663,1775629858639,-1166.0,0.00027,2]
[420041664,1775629858649,-839.0,0.00027,2]
[420041665,1775629858659,-1217.0,0.00027,2]
[420041666,1775629858669,-113846.4586908,0.00027017,2]
[420041667,1775629858679,-151.0,0.00027017,2]
[420041668,1775629858689,-151.0,0.00027017,2]
[420041669,1775629858698,-151.0,0.00027017,2]
[420041670,1775629858708,-151.0,0.00027017,2]
[420041671,1775629858718,-151.0,0.00027017,2]
[420041672,1775629858728,-291.455006,0.00027017,2]
[420041673,1775629858738,-151.0,0.00027017,2]
[420041674,1775629858748,-226.261666,0.00027017,2]
[420041675,1775629858758,-151.0,0.00027017,2]
[420041676,1775629858768,-226.261666,0.00027017,2]
[420041677,1775629858779,-151.0,0.00027017,2]
[420041678,1775629858790,-226.261666,0.00027017,2]
[420041679,1775629858800,-151.0,0.00027017,2]
[420041680,1775629858810,-151.0,0.00027017,2]
[420041681,1775629858822,-151.0,0.00027017,2]
[420041682,1775629858833,-196.402077,0.00027017,2]
[420041683,1775629858844,-151.0,0.00027017,2]
[420041684,1775629858855,-151.0,0.00027017,2]
[420041685,1775629858865,-151.0,0.00027017,2]
[420041686,1775629858875,-284.485092,0.00027017,2]
[420041687,1775629858885,-151.575895,0.00027017,2]
[420041688,1775629858895,-151.0,0.00027017,2]
[420041689,1775629858905,-151.0,0.00027017,2]
[420041690,1775629858914,-181.438776,0.00027017,2]
[420041691,1775629858925,-151.0,0.00027017,2]
[420041692,1775629858935,-181.438776,0.00027017,2]
[420041693,1775629858945,-181.438776,0.00027017,2]
[420041694,1775629858957,-181.438776,0.00027017,2]
[420041695,1775629858967,-151.0,0.00027017,2]
[420041696,1775629858977,-151.0,0.00027017,2]
[420041697,1775629858988,-151.0,0.00027017,2]
[420041698,1775629858999,-574.00242,0.00027017,2]
[420041699,1775629859009,-574.00242,0.00027017,2]
[420041700,1775629859019,-574.00242,0.00027017,2]
[420041701,1775629859029,-574.00242,0.00027017,2]
[420041702,1775629859039,-686.05,0.00027074,2]
[420041703,1775629859049,-686.05,0.00027074,2]
[420041704,1775629859059,-686.05,0.00027074,2]
[420041705,1775629859070,-686.05,0.00027074,2]
[420041706,1775629859080,-686.1328036,0.00027074,2]
[420041707,1775629859089,-204722.5173436,0.00027075,2]
[420041708,1775629859099,-200.428712,0.00027075,2]
[420041709,1775629859109,-331.903835,0.00027075,2]
[420041710,1775629859120,-151.0,0.00027075,2]
[420041711,1775629859131,-200.428712,0.00027075,2]
[420041712,1775629859141,-151.0,0.00027075,2]
[420041713,1775629859150,-331.903835,0.00027075,2]
[420041714,1775629859160,-216.401494,0.00027075,2]
[420041715,1775629859171,-200.428712,0.00027075,2]
[420041716,1775629859180,-331.903835,0.00027075,2]
[420041717,1775629859191,-151.0,0.00027075,2]
[420041718,1775629859201,-216.401494,0.00027075,2]
[420041719,1775629859211,-200.428712,0.00027075,2]
[420041720,1775629859221,-331.903835,0.00027075,2]
[420041721,1775629859231,-406.974794,0.00027075,2]
[420041722,1775629859241,-216.401494,0.00027075,2]
[420041723,1775629859252,-688.562471,0.00027075,2]
[420041724,1775629859261,-406.974794,0.00027075,2]
[420041725,1775629859271,-216.401494,0.00027075,2]
[420041726,1775629859282,-688.562471,0.00027075,2]
[420041727,1775629859292,-406.974794,0.00027075,2]
[420041728,1775629859303,-151.0,0.00027075,2]
[420041729,1775629859314,-688.562471,0.00027075,2]
[420041730,1775629859324,-406.974794,0.00027075,2]
[420041731,1775629859334,-688.562471,0.00027075,2]
[420041732,1775629859344,-151.0,0.00027075,2]
[420041733,1775629859354,-151.0,0.00027075,2]
[420041734,1775629859365,-151.0,0.00027075,2]
[420041735,1775629859374,-151.0,0.00027075,2]
[420041736,1775629859384,-151.0,0.00027075,2]
[420041737,1775629859393,-158.486598,0.00027075,2]
[420041738,1775629859403,-242.843831,0.00027075,2]
[420041739,1775629859412,-151.0,0.00027075,2]
[420041740,1775629859422,-158.486598,0.00027075,2]
[420041741,1775629859432,-151.0,0.00027075,2]
[420041742,1775629859441,-158.486598,0.00027075,2]
[420041743,1775629859450,-151.0,0.00027075,2]
[420041744,1775629859460,-158.486598,0.00027075,2]
[420041745,1775629859470,-170.588254,0.00027075,2]
[420041746,1775629859479,-1783.253125,0.00027075,2]
[420041747,1775629859489,-1783.253125,0.00027075,2]
[420041748,1775629859499,-252.211117,0.00027075,2]
[420041749,1775629859508,-470.727614,0.00027075,2]
[420041750,1775629859517,-1783.253125,0.00027075,2]
[420041751,1775629859526,-252.211117,0.00027075,2]
[420041752,1775629859536,-470.727614,0.00027075,2]
[420041753,1775629859546,-1783.253125,0.00027075,2]
[420041754,1775629859555,-252.211117,0.00027075,2]
[420041755,1775629859565,-166.285857,0.00027075,2]
[420041756,1775629859574,-151.0,0.00027075,2]
[420041757,1775629859584,-470.727614,0.00027075,2]
[420041758,1775629859593,-252.211117,0.00027075,2]
[420041759,1775629859602,-166.285857,0.00027075,2]
[420041760,1775629859612,-470.727614,0.00027075,2]
[420041761,1775629859621,-166.285857,0.00027075,2]
[420041762,1775629859631,-576.67248,0.00027075,2]
[420041763,1775629859641,-244.821422,0.00027075,2]
[420041764,1775629859651,-166.285857,0.00027075,2]
[420041765,1775629859660,-151.0,0.00027075,2]
[420041766,1775629859670,-576.67248,0.00027075,2]
[420041767,1775629859679,-244.821422,0.00027075,2]
[420041768,1775629859688,-576.67248,0.00027075,2]
[420041769,1775629859697,-151.0,0.00027075,2]
[420041770,1775629859706,-244.821422,0.00027075,2]
[420041771,1775629859715,-576.67248,0.00027075,2]
[420041772,1775629859725,-244.821422,0.00027075,2]
[420041773,1775629859735,-511.805651,0.00027075,2]
[420041774,1775629859744,-511.805651,0.00027075,2]
[420041775,1775629859753,-159.072668,0.00027075,2]
[420041776,1775629859763,-511.805651,0.00027075,2]
[420041777,1775629859772,-159.072668,0.00027075,2]
[420041778,1775629859782,-511.805651,0.00027075,2]
[420041779,1775629859791,-159.072668,0.00027075,2]
[420041780,1775629859800,-159.072668,0.00027075,2]
[420041781,1775629859810,-151.0,0.00027075,2]
[420041782,1775629859819,-151.0,0.00027075,2]
[420041783,1775629859828,-151.0,0.00027075,2]
[420041784,1775629859837,-151.0,0.00027075,2]
[420041785,1775629859846,-157.854968,0.00027075,2]
[420041786,1775629859856,-2812.0,0.0002708,3]
[420041787,1775629859865,-152.40359973,0.00027126,2]
[420041788,1775629859874,-150.0,0.00027185,2]
[420041789,1775629859883,-200.0,0.000272,10]
[420041790,1775629859892,-2000.0,0.0002723,2]
[420041791,1775629859901,-2000.0,0.0002723,2]
[420041792,1775629859910,-2000.0,0.0002723,2]
[420041793,1775629859919,-825.0,0.00027233,60]
[420041794,1775629859927,-500.0,0.0002728,3]
[420041795,1775629859938,-500.0,0.0002728,3]
[420041796,1775629859947,-151.0,0.0002729,2]
[420041797,1775629859956,-200.0,0.0002729,2]
[420041798,1775629859966,-286.03795682,0.0002729,2]
[420041799,1775629859975,-200.0,0.0002729,2]
[420041800,1775629859986,-1038.37212786,0.0002729,2]
[420041801,1775629859995,-299.14322048,0.000273,60]
[420041802,1775629860005,-226.06643133,0.000273,30]
[420041803,1775629860014,-226.06643131,0.000273,30]
[420041804,1775629860024,-300.0,0.000273,10]
[420041805,1775629860035,-162.4734,0.0002736,2]
[420041806,1775629860044,-3524.0,0.00027368,2]
[420041807,1775629860054,-1046.0,0.00027368,2]
[420041808,1775629860063,-162.4734,0.0002737,2]
[420041809,1775629860071,-162.4734,0.0002738,2]
[420041810,1775629860081,-4470.88021783,0.0002739,7]
[420041811,1775629860091,-593.38,0.00027397,120]
[420041812,1775629860101,-151.0,0.00027397,7]
[420041813,1775629860111,-916.91,0.00027397,120]
[420041814,1775629860121,-560.80847937,0.00027397,2]
[420041815,1775629860131,-1000.0,0.00027397,4]
[420041816,1775629860140,-1000.0,0.00027397,4]
[420041817,1775629860149,-1069.72946307,0.00027397,4]
[420041818,1775629860159,-383.03666175,0.00027397,7]
[420041819,1775629860168,-500.0,0.00027397,2]
[420041820,1775629860178,-1000.0,0.00027397,4]
[420041821,1775629860188,-1000.0,0.00027397,4]
[420041822,1775629860198,-1000.0,0.00027397,4]
[420041823,1775629860208,-1000.0,0.00027397,4]
[420041824,1775629860218,-1000.0,0.00027397,4]
[420041825,1775629860228,-1000.0,0.00027397,4]
[420041826,1775629860237,-1000.0,0.00027397,4]
[420041827,1775629860247,-1000.0,0.00027397,4]
[420041828,1775629860256,-300.0,0.00027397,2]
[420041829,1775629860266,-1000.0,0.00027397,20]
[420041830,1775629860275,-399.423099,0.00027397,2]
[420041831,1775629860286,-399.423099,0.00027397,2]
[420041832,1775629860297,-399.423099,0.00027397,2]
[420041833,1775629860307,-399.423099,0.00027397,2]
[420041834,1775629860317,-222.664567,0.00027397,2]
[420041835,1775629860328,-222.664567,0.00027397,2]
[420041836,1775629860338,-222.664567,0.00027397,2]
[420041837,1775629860348,-222.664567,0.00027397,2]
[420041838,1775629860358,-558.20114292,0.00027397,2]
[420041839,1775629860367,-952.790729,0.00027397,2]
[420041840,1775629860377,-952.790729,0.00027397,2]
[420041841,1775629860387,-952.790729,0.00027397,2]
[420041842,1775629860397,-952.790729,0.00027397,2]
[420041843,1775629860410,-528.52,0.00027397,2]
[420041844,1775629860420,-11502.75,0.00027397,10]
[420041845,1775629860430,-150.0,0.00027397,5]
[420041846,1775629860441,-500.0,0.00027397,5]
[420041847,1775629860451,-10235.5514,0.000274,2]
[420041848,1775629860461,-68119.97,0.000274,7]
[420041849,1775629860471,-2234.77,0.000274,7]
[420041850,1775629860481,-2383.51,0.000274,7]
[420041851,1775629860490,-1753.78,0.000274,7]
[420041852,1775629860501,-4257.28,0.000274,7]
[420041853,1775629860511,-166.1737474,0.000274,2]
[420041854,1775629860521,-5897.99599041,0.000274,2]
[420041855,1775629860531,-507.0,0.00027436,14]
[420041856,1775629860541,-152.0,0.0002745,7]
[420041857,1775629860551,-153.8213918,0.0002745,5]
[420041858,1775629860560,-152.0,0.0002745,5]
[420041859,1775629860570,-152.0,0.0002745,5]
[420041860,1775629860581,-1000.0,0.00027458,2]
[420041861,1775629860591,-57652.50632696,0.0002749,2]
[420041862,1775629860601,-151.0,0.00027497,7]
[420041863,1775629860611,-151.0,0.00027497,7]
[420041864,1775629860620,-151.0,0.00027497,7]
[420041865,1775629860630,-151.0,0.00027497,7]
[420041866,1775629860640,-180.33410322,0.00027497,7]
[420041867,1775629860650,-601.29647954,0.00027499,2]
[420041868,1775629860659,-351.54269781,0.00027499,7]
[420041869,1775629860669,-3187810.56330763,0.000275,2]
[420041870,1775629861748,-707.09698327,0.000275,2]
[420041871,1775629861776,-479.47501245,0.000275,2]
[420041872,1775629861924,-299.0,0.00010298,2]
[420041873,1775629861935,-151.0,0.000249,2]
[420041874,1775629861945,-319.192583,0.000249,2]
[420041875,1775629861955,-32738.677519,0.000275,2]
[420041876,1775629861967,-510.92875092,0.000275,2]
[420041877,1775629862016,-151.0,0.000249,2]
[420041878,1775629862025,-1000.0,0.00026675,120]
[420041879,1775629862035,-1505654.66783687,0.000275,2]
[420041880,1775629862045,-2110.0,0.000275,2]
[420041881,1775629862054,-597.11866757,0.000275,2]
[420041882,1775629862064,-202.96735668,0.000275,2]
[420041883,1775629862075,-554.37482612,0.000275,2]
[420041884,1775629862085,-152.135177,0.000275,7]
[420041885,1775629862095,-151.0,0.000275,7]
[420041886,1775629862106,-202.615524,0.000275,7]
[420041887,1775629862116,-257.246826,0.000275,7]
[420041888,1775629862126,-151.0,0.000275,7]
[420041889,1775629862135,-152.416754,0.000275,7]
[420041890,1775629862145,-151.0,0.000275,7]
[420041891,1775629862155,-186.699158,0.000275,7]
[420041892,1775629862165,-200.34394,0.000275,7]
[420041893,1775629862174,-158.664171,0.000275,7]
[420041894,1775629862184,-151.0,0.000275,7]
[420041895,1775629862195,-151.0,0.000275,7]
[420041896,1775629862205,-151.0,0.000275,7]
[420041897,1775629862215,-151.0,0.000275,7]
[420041898,1775629862225,-500.0,0.000275,30]
[420041899,1775629862235,-648.47292042,0.000275,7]
[420041900,1775629862245,-500.0,0.000275,30]
[420041901,1775629862261,-500.0,0.000275,30]
[420041902,1775629862271,-493.4709058,0.000275,30]
[420041903,1775629862281,-151.0,0.000275,7]
[420041904,1775629862291,-151.0,0.000275,7]
[420041905,1775629862301,-151.0,0.000275,7]
[420041906,1775629862311,-153.263153,0.000275,7]
[420041907,1775629862322,-151.0,0.000275,7]
[420041908,1775629862334,-151.0,0.000275,7]
[420041909,1775629862344,-240.006064,0.000275,7]
[420041910,1775629862355,-151.0,0.000275,7]
[420041911,1775629862365,-151.0,0.000275,7]
[420041912,1775629862375,-197.235501,0.000275,7]
[420041913,1775629862385,-151.0,0.000275,7]
[420041914,1775629862394,-151.000005,0.000275,7]
[420041915,1775629862404,-164.343255,0.000275,7]
[420041916,1775629862415,-151.0,0.000275,7]
[420041917,1775629862424,-151.0,0.000275,7]
[420041918,1775629862435,-151.0,0.000275,7]
[420041919,1775629862445,-151.0,0.000275,7]
[420041920,1775629862455,-151.0,0.000275,7]
[420041921,1775629862465,-151.0,0.000275,7]
[420041922,1775629862475,-151.0,0.000275,7]
[420041923,1775629862485,-151.0,0.000275,7]
[420041924,1775629862495,-151.0,0.000275,7]
[420041925,1775629862506,-151.0,0.000275,7]
[420041926,1775629862515,-152.393342,0.000275,7]
[420041927,1775629862525,-151.0,0.000275,7]
[420041928,1775629862535,-151.0,0.000275,7]
[420041929,1775629862545,-151.0,0.000275,7]
[420041930,1775629862555,-151.0,0.000275,7]
[420041931,1775629862565,-155.175187,0.000275,7]
[420041932,1775629862575,-151.0,0.000275,7]
[420041933,1775629862586,-151.0,0.000275,7]
[420041934,1775629862596,-151.0,0.000275,7]
[420041935,1775629863310,-151.0,0.000275,7]
[420041936,1775629863320,-151.0,0.000275,7]
[420041937,1775629863330,-151.0,0.000275,7]
[420041938,1775629863339,-151.0,0.000275,7]
[420041939,1775629863349,-151.0,0.000275,7]
[420041940,1775629863359,-151.0,0.000275,7]
[420041941,1775629863368,-151.0,0.000275,7]
[420041942,1775629863378,-151.0,0.000275,7]
[420041943,1775629863388,-151.0,0.000275,7]
[420041944,1775629863397,-151.0,0.000275,7]
[420041945,1775629863406,-151.0,0.000275,7]
[420041946,1775629863416,-151.0,0.000275,7]
[420041947,1775629863426,-151.0,0.000275,7]
[420041948,1775629863435,-151.0,0.000275,7]
[420041949,1775629863446,-151.0,0.000275,7]
[420041950,1775629863455,-151.0,0.000275,7]
[420041951,1775629863466,-151.0,0.000275,7]
[420041952,1775629863477,-235.253801,0.000275,7]
[420041953,1775629863488,-151.0,0.000275,7]
[420041954,1775629863498,-235.253801,0.000275,7]
[420041955,1775629863509,-235.253801,0.000275,7]
[420041956,1775629863520,-151.0,0.000275,7]
[420041957,1775629863536,-235.253801,0.000275,7]
[420041958,1775629863548,-151.0,0.000275,7]
[420041959,1775629863559,-152.31661,0.000275,7]
[420041960,1775629863571,-459.939466,0.000275,7]
[420041961,1775629863583,-459.939466,0.000275,7]
[420041962,1775629863593,-459.939466,0.000275,7]
[420041963,1775629863603,-459.939466,0.000275,7]
[420041964,1775629863617,-151.0,0.000275,7]
[420041965,1775629863627,-151.0,0.000275,7]
[420041966,1775629863638,-151.0,0.000275,7]
[420041967,1775629863649,-151.0,0.000275,7]
[420041968,1775629863659,-151.0,0.000275,7]
[420041969,1775629863670,-226.261666,0.000275,7]
[420041970,1775629863681,-151.0,0.000275,7]
[420041971,1775629863693,-226.261666,0.000275,7]
[420041972,1775629863704,-151.0,0.000275,7]
[420041973,1775629863714,-226.261666,0.000275,7]
[420041974,1775629863725,-151.0,0.000275,7]
[420041975,1775629863735,-226.261666,0.000275,7]
[420041976,1775629863746,-151.0,0.000275,7]
[420041977,1775629863755,-152.58185,0.000275,7]
[420041978,1775629863765,-206.48798596,0.000275,7]
[420041979,1775629863775,-151.0,0.000275,7]
[420041980,1775629863786,-151.0,0.000275,7]
[420041981,1775629863796,-151.0,0.000275,7]
[420041982,1775629863805,-151.0,0.000275,7]
[420041983,1775629863815,-181.438776,0.000275,7]
[420041984,1775629863825,-151.0,0.000275,7]
[420041985,1775629863836,-181.438776,0.000275,7]
[420041986,1775629863846,-399.423099,0.000275,7]
[420041987,1775629863856,-181.438776,0.000275,7]
[420041988,1775629863866,-399.423099,0.000275,7]
[420041989,1775629863876,-181.438776,0.000275,7]
[420041990,1775629863887,-151.0,0.000275,7]
[420041991,1775629863897,-399.423099,0.000275,7]
[420041992,1775629863907,-151.0,0.000275,7]
[420041993,1775629863917,-399.423099,0.000275,7]
[420041994,1775629863927,-151.0,0.000275,7]
[420041995,1775629863937,-574.00242,0.000275,7]
[420041996,1775629863948,-574.00242,0.000275,7]
[420041997,1775629863958,-931.295422,0.000275,7]
[420041998,1775629863968,-516.55211,0.000275,7]
[420041999,1775629863979,-931.295422,0.000275,7]
[420042000,1775629863989,-574.00242,0.000275,7]
[420042001,1775629864000,-516.55211,0.000275,7]
[420042002,1775629864013,-151.0,0.000275,7]
[420042003,1775629864023,-300.187423,0.000275,7]
[420042004,1775629864033,-931.295422,0.000275,7]
[420042005,1775629864044,-516.55211,0.000275,7]
[420042006,1775629864054,-574.00242,0.000275,7]
[420042007,1775629864064,-300.187423,0.000275,7]
[420042008,1775629864074,-151.0,0.000275,7]